bitfinex/quotes_ETHUSD_20250511
["timestamp","ask_amount","ask_price","bid_price","bid_amount"]
[1746996005465,12.08338826,2507.2,2507.1,0.05]
[1746996007775,11.86242072,2507.2,2507.1,0.05]
[1746996009281,22.05242072,2507.2,2507.1,0.05]
[1746996009949,22.05242072,2507.2,2506.1,0.05]
[1746996009950,4.78450454,2506.2,2506.1,0.05]
[1746996010143,7.43550454,2506.2,2506.1,0.05]
[1746996011075,2.52,2506.3,2506.1,0.05]
[1746996011276,11.27486961,2506.9,2506.1,0.05]
[1746996011655,3.99010454,2506.2,2506.1,0.05]
[1746996011868,3.99002354,2506.3,2506.1,0.05]
[1746996012474,3.99010454,2506.2,2506.1,0.05]
[1746996013141,2.52,2506.9,2506.3,15.980127]
[1746996013342,3.98962696,2506.5,2506.4,0.8323]
[1746996013561,3.98962696,2506.5,2506.2,2.653]
[1746996013760,3.98962696,2506.5,2506.3,8.0]
[1746996013979,3.98962696,2506.5,2506.1,11.5353]
[1746996014278,3.99004716,2506.3,2506.1,11.5353]
[1746996014680,3.99010454,2506.2,2506.1,0.05]
[1746996015244,6.64121086,2506.8,2506.1,0.05]
[1746996015488,2.652,2506.8,2506.1,0.05]
[1746996015780,3.98972536,2506.5,2506.2,0.8042]
[1746996015996,3.98972536,2506.5,2506.3,8.0]
[1746996016783,3.98978614,2506.4,2506.3,8.0]
[1746996021790,3.98963678,2506.5,2506.3,8.0]
[1746996023299,3.98978614,2506.4,2506.3,8.0]
[1746996023632,3.98971329,2506.5,2506.3,8.0]
[1746996023831,3.98978614,2506.4,2506.3,8.0]
[1746996024031,3.98976432,2506.5,2506.3,8.0]
[1746996024726,6.03162113,2509.4,2506.5,3.989764]
[1746996024727,3.98851308,2507.2,2506.5,3.989764]
[1746996024930,3.98851308,2507.2,2506.4,0.8197]
[1746996024931,3.9894678,2506.6,2506.4,0.8197]
[1746996025132,3.98978235,2506.5,2506.3,8.0]
[1746996025320,0.8104,2506.8,2506.3,8.0]
[1746996025494,3.98959844,2506.6,2506.3,8.0]
[1746996025695,3.98966383,2506.5,2506.3,8.0]
[1746996026431,3.98932469,2506.7,2506.3,8.0]
[1746996026632,3.98932469,2506.7,2506.3,9.15186]
[1746996027517,3.98948692,2506.6,2506.3,9.15186]
[1746996028047,3.98936832,2506.7,2506.3,9.15186]
[1746996028247,3.98890187,2507.0,2506.8,8.0]
[1746996028564,3.98925496,2506.8,2506.5,0.8019]
[1746996029601,3.98932972,2506.7,2506.5,0.8019]
[1746996029816,3.9894678,2506.6,2506.5,11.4529]
[1746996030039,3.9894678,2506.6,2506.5,10.651]
[1746996030225,3.9894678,2506.6,2506.5,8.0]
[1746996030623,1.2670876,2507.2,2506.5,8.0]
[1746996030939,3.9887143,2507.1,2506.7,0.7833]
[1746996031703,0.7927,2507.7,2506.8,0.19891672]
[1746996032042,3.98834027,2507.4,2506.8,8.03988954]
[1746996032535,3.98834027,2507.4,2507.0,0.7706]
[1746996032711,3.9883754,2507.3,2507.0,0.7706]
[1746996032911,3.9883754,2507.3,2507.1,0.16436052]
[1746996033102,3.9883754,2507.3,2507.1,8.16436052]
[1746996033848,5.976,2507.9,2507.1,8.16436052]
[1746996034012,3.9881112,2507.5,2507.1,8.20424575]
[1746996034199,9.96341725,2507.9,2507.1,8.20424575]
[1746996034200,3.98819794,2507.4,2507.1,8.16436052]
[1746996035500,3.98843657,2507.3,2507.1,8.16436052]
[1746996035704,3.98851308,2507.2,2507.1,8.16436052]
[1746996036105,3.98851308,2507.2,2507.1,0.16436052]
[1746996036328,3.98883127,2507.0,2506.9,8.0]
[1746996036545,3.98883127,2507.0,2506.9,8.14778867]
[1746996038219,3.98874776,2507.1,2506.9,8.14778867]
[1746996038905,3.98857618,2507.2,2506.9,8.14778867]
[1746996039101,3.98869906,2507.1,2506.9,8.14778867]
[1746996040341,3.98883127,2507.0,2506.9,8.14778867]
[1746996040921,0.7534,2507.8,2507.1,8.0]
[1746996041244,3.98850959,2507.3,2506.9,8.0]
[1746996041748,3.98850959,2507.3,2507.0,0.14480284]
[1746996042961,3.98724082,2508.0,2507.5,8.787811]
[1746996043106,3.98737097,2508.0,2507.9,8.0]
[1746996043311,3.98755881,2507.8,2507.7,8.0]
[1746996043510,3.98755881,2507.8,2507.7,8.14534105]
[1746996044322,3.98726501,2508.0,2507.9,8.0]
[1746996044518,3.98726501,2508.0,2507.7,8.0]
[1746996044723,3.98726501,2508.0,2507.8,0.14534105]
[1746996044932,3.98726501,2508.0,2507.7,8.0]
[1746996045144,3.98726501,2508.0,2507.8,0.14534105]
[1746996045345,3.98739981,2507.9,2507.7,8.0]
[1746996045547,3.98739981,2507.9,2507.8,0.14534105]
[1746996045759,3.98739981,2507.9,2507.7,8.0]
[1746996045941,3.98739981,2507.9,2507.8,0.14534105]
[1746996046141,3.98739981,2507.9,2507.7,8.0]
[1746996046341,3.98729694,2508.0,2507.8,0.14534105]
[1746996046548,3.98739981,2507.9,2507.7,8.0]
[1746996046746,3.98739981,2507.9,2507.8,0.14534105]
[1746996047041,3.98739981,2507.9,2507.7,8.0]
[1746996047242,3.98739981,2507.9,2507.8,0.14534105]
[1746996047424,3.98739981,2507.9,2507.7,8.0]
[1746996047631,0.8292,2508.6,2507.8,0.93994105]
[1746996047820,3.98699509,2508.2,2507.8,0.93994105]
[1746996050114,3.98699509,2508.2,2507.8,0.97981179]
[1746996050631,3.98720052,2508.1,2507.8,0.93994105]
[1746996050943,3.98734497,2508.0,2507.8,0.93994105]
[1746996052379,3.98706145,2508.2,2507.8,0.93994105]
[1746996052544,3.98709433,2508.1,2507.8,0.93994105]
[1746996053761,3.98729868,2508.0,2507.8,0.93994105]
[1746996054086,6.70269484,2507.9,2507.8,0.14534105]
[1746996054362,9.22269484,2507.9,2507.8,0.14534105]
[1746996054564,3.98920015,2506.8,2506.6,2.649]
[1746996054874,3.98920015,2506.8,2506.7,0.10361747]
[1746996055171,3.98920015,2506.8,2506.7,8.0]
[1746996055339,3.98920015,2506.8,2506.7,8.1076212]
[1746996055536,3.98920015,2506.8,2506.7,0.1076212]
[1746996055727,4.78701964,2506.8,2506.7,0.1076212]
[1746996055927,3.98978614,2506.4,2506.3,2.649]
[1746996056133,3.98978614,2506.4,2506.3,2.7566212]
[1746996056338,3.98978614,2506.4,2506.3,0.1076212]
[1746996056572,0.65124693,2506.4,2506.1,0.05]
[1746996056876,3.98930865,2506.7,2506.2,0.11729193]
[1746996057381,3.98971477,2506.5,2506.2,0.11729193]
[1746996058051,4.77787251,2506.8,2506.2,0.11729193]
[1746996059038,3.98994533,2506.3,2506.2,0.11729193]
[1746996061476,6.50925547,2506.8,2506.3,4.808345]
[1746996061679,2.52,2506.8,2506.3,2.11596369]
[1746996061890,3.98900615,2506.9,2506.4,8.15865402]
[1746996062178,3.98906598,2506.9,2506.4,8.11875804]
[1746996062347,3.98906598,2506.9,2506.5,1.28827217]
[1746996062545,3.98914951,2506.8,2506.7,8.0]
[1746996063090,3.98914951,2506.8,2506.7,8.1179272]
[1746996068684,3.98914951,2506.8,2506.7,0.1179272]
[1746996069061,3.98962696,2506.5,2506.4,8.0]
[1746996069796,3.98955131,2506.6,2506.4,8.0]
[1746996069997,3.98908945,2506.9,2506.6,3.989551]
[1746996070202,3.98908945,2506.9,2506.5,0.8169]
[1746996070974,3.98918243,2506.8,2506.5,0.8169]
[1746996071792,3.98888118,2507.0,2506.8,3.989182]
[1746996071995,3.98888118,2507.0,2506.5,0.8169]
[1746996072195,3.98923852,2506.8,2506.5,0.8169]
[1746996072415,0.7572,2507.0,2506.4,8.0]
[1746996072573,3.98939264,2506.7,2506.4,8.0]
[1746996073087,3.98939264,2506.7,2506.5,0.11567947]
[1746996076098,3.9894678,2506.6,2506.5,0.11567947]
[1746996076286,5.62014818,2506.6,2506.5,0.11567947]
[1746996076664,5.62014818,2506.6,2506.1,0.05]
[1746996076665,3.99010454,2506.2,2506.1,0.05]
[1746996077294,3.99010454,2506.2,2506.1,0.16616805]
[1746996078467,1.63068038,2506.6,2506.1,0.16616805]
[1746996078676,0.8328,2506.6,2506.1,0.16616805]
[1746996078883,3.99008383,2506.3,2506.1,0.16616805]
[1746996079084,3.99010454,2506.2,2506.1,0.16616805]
[1746996080415,3.99007322,2506.3,2506.1,0.16616805]
[1746996080608,3.99010454,2506.2,2506.1,0.16616805]
[1746996082818,3.99004755,2506.3,2506.1,0.16616805]
[1746996083018,2.52,2506.8,2506.4,8.0]
[1746996083187,4.74736213,2506.9,2506.6,0.8073]
[1746996083188,3.98906419,2506.9,2506.6,0.8073]
[1746996083522,3.98930865,2506.7,2506.6,8.0]
[1746996083728,3.98888905,2507.0,2506.6,8.0]
[1746996083890,3.98909735,2506.9,2506.6,8.12032188]
[1746996084932,3.98917319,2506.8,2506.6,8.12032188]
[1746996085301,3.98930865,2506.7,2506.6,8.12032188]
[1746996085488,3.98927875,2506.8,2506.6,8.12032188]
[1746996085823,3.98905818,2506.9,2506.6,8.12032188]
[1746996086024,3.98916805,2506.8,2506.6,8.12032188]
[1746996086392,3.98930865,2506.7,2506.6,8.12032188]
[1746996086586,3.98923576,2506.8,2506.6,8.12032188]
[1746996087287,3.98930865,2506.7,2506.6,8.12032188]
[1746996087693,3.98930865,2506.7,2506.6,0.12032188]
[1746996088190,3.9894678,2506.6,2506.5,8.0]
[1746996088917,3.98939111,2506.7,2506.5,8.0]
[1746996089628,3.9894678,2506.6,2506.5,8.0]
[1746996089997,3.98917905,2506.8,2506.5,8.0]
[1746996089998,3.9893129,2506.7,2506.5,8.0]
[1746996091127,3.9894678,2506.6,2506.5,8.0]
[1746996093129,3.98919654,2506.8,2506.5,8.0]
[1746996093130,3.98924503,2506.8,2506.5,8.0]
[1746996093426,3.9893875,2506.7,2506.5,9.0646]
[1746996093598,3.9893875,2506.7,2506.5,8.0]
[1746996094907,0.7784,2507.0,2506.5,8.0]
[1746996095130,0.7965,2507.3,2506.6,0.8252]
[1746996095431,3.98900121,2506.9,2506.6,0.8252]
[1746996096534,3.98902461,2506.9,2506.6,0.8252]
[1746996096701,3.98902461,2506.9,2506.6,1.97630934]
[1746996096902,3.98918804,2506.8,2506.6,0.8252]
[1746996097420,3.98978614,2506.4,2506.3,10.646]
[1746996097735,3.98978614,2506.4,2506.3,2.646]
[1746996098603,3.99000409,2506.3,2506.1,2.696]
[1746996098934,3.99010454,2506.2,2506.1,0.05]
[1746996101410,5.57670995,2506.2,2506.1,0.05]
[1746996103138,5.57670995,2506.2,2506.1,0.16729193]
[1746996103631,5.57670995,2506.2,2506.1,0.05]
[1746996104243,5.57670995,2506.2,2506.1,0.16729193]
[1746996104406,5.79956499,2506.2,2506.1,0.16729193]
[1746996105422,5.57670995,2506.2,2506.1,0.16729193]
[1746996105619,5.60630995,2506.2,2506.1,0.16729193]
[1746996109830,3.98995338,2506.3,2506.1,0.16729193]
[1746996110036,2.52,2506.5,2506.1,0.16729193]
[1746996110959,3.99010454,2506.2,2506.1,0.16729193]
[1746996111970,3.99010454,2506.2,2506.1,0.95989193]
[1746996113236,3.99000259,2506.3,2506.1,0.95989193]
[1746996113564,3.99010454,2506.2,2506.1,0.16729193]
[1746996113862,3.99010454,2506.2,2506.1,0.05]
[1746996114066,3.99010454,2506.2,2506.1,0.17325492]
[1746996115034,4.78160454,2506.2,2506.1,0.17325492]
[1746996115369,4.78160454,2506.2,2506.1,0.05]
[1746996115683,5.43267849,2506.2,2506.1,0.17398822]
[1746996120550,3.99010454,2506.2,2506.1,0.17398822]
[1746996120870,3.99010454,2506.2,2506.1,0.92768822]
[1746996122083,3.9894678,2506.6,2506.1,0.92768822]
[1746996122264,3.98936366,2506.7,2506.1,0.92768822]
[1746996122465,3.99007449,2506.3,2506.2,8.0]
[1746996122655,3.99007449,2506.3,2506.2,8.12516167]
[1746996123052,3.98984118,2506.4,2506.2,8.12516167]
[1746996123397,3.98985456,2506.4,2506.2,9.28244784]
[1746996125588,3.98970976,2506.5,2506.2,9.28244784]
[1746996125776,3.9898117,2506.4,2506.2,9.28244784]
[1746996126389,3.98994533,2506.3,2506.2,0.12516167]
[1746996126959,3.99010454,2506.2,2506.1,0.05]
[1746996127367,3.99010454,2506.2,2506.1,0.15954969]
[1746996127573,3.99010454,2506.2,2506.1,0.05]
[1746996128081,3.99010454,2506.2,2506.1,0.15954969]
[1746996133001,2.52,2506.7,2506.1,0.15954969]
[1746996133303,6.50943898,2506.7,2506.2,8.7691]
[1746996133469,3.98949216,2506.6,2506.3,3.91237432]
[1746996134690,3.98967633,2506.5,2506.3,3.91237432]
[1746996134883,3.98967633,2506.5,2506.3,2.75530935]
[1746996135405,3.98978614,2506.4,2506.3,0.11130935]
[1746996135781,3.98978614,2506.4,2506.2,8.0]
[1746996135992,3.98978614,2506.4,2506.3,0.11013619]
[1746996136395,3.98978614,2506.4,2506.2,8.0]
[1746996136591,3.98978614,2506.4,2506.3,0.10876765]
[1746996136905,3.98978614,2506.4,2506.2,8.0]
[1746996137100,3.98978614,2506.4,2506.3,0.10876765]
[1746996137406,3.98978614,2506.4,2506.2,8.0]
[1746996137568,3.98978614,2506.4,2506.3,0.10876765]
[1746996138276,3.98978614,2506.4,2506.2,8.0]
[1746996138590,3.98978614,2506.4,2506.3,0.10876765]
[1746996139102,3.98978614,2506.4,2506.2,8.0]
[1746996139283,3.98978614,2506.4,2506.3,0.10876765]
[1746996139473,3.98978614,2506.4,2506.2,8.0]
[1746996139673,3.98978614,2506.4,2506.3,0.10876765]
[1746996139875,3.98978614,2506.4,2506.2,8.0]
[1746996140196,3.98978614,2506.4,2506.3,0.10876765]
[1746996141283,3.98978614,2506.4,2506.2,8.0]
[1746996141473,3.98978614,2506.4,2506.3,0.10876765]
[1746996141673,0.8049,2506.9,2506.2,8.0]
[1746996141980,3.98962444,2506.6,2506.2,9.14631]
[1746996143107,3.98851859,2507.2,2506.4,0.8093]
[1746996143285,3.98923643,2506.8,2506.4,0.8093]
[1746996143486,3.98923643,2506.8,2506.5,0.10847443]
[1746996145208,3.9894678,2506.6,2506.5,0.10847443]
[1746996145714,3.98963574,2506.5,2506.2,9.96121]
[1746996145872,3.98957037,2506.6,2506.3,1.37399543]
[1746996147891,3.98964979,2506.5,2506.3,1.37399543]
[1746996149208,3.98978614,2506.4,2506.3,0.10847443]
[1746996149611,3.99010454,2506.2,2506.1,0.05]
[1746996150126,3.99010454,2506.2,2506.1,0.14902404]
[1746996156142,3.98962696,2506.5,2506.3,8.0]
[1746996156344,3.98962696,2506.5,2506.4,0.10087989]
[1746996156548,3.98962696,2506.5,2506.2,0.7625]
[1746996156746,3.98962696,2506.5,2506.3,0.10087989]
[1746996157048,3.98979821,2506.4,2506.2,1.64773988]
[1746996160240,3.98979821,2506.4,2506.3,10.64]
[1746996161841,3.98978614,2506.4,2506.3,2.64]
[1746996163253,3.98978614,2506.4,2506.3,2.74171014]
[1746996164044,3.98960975,2506.6,2506.3,2.74171014]
[1746996164246,3.98963749,2506.5,2506.3,2.74171014]
[1746996167251,3.98909418,2506.9,2506.5,3.989637]
[1746996167449,3.98925813,2506.8,2506.4,8.7838]
[1746996167654,3.98931596,2506.7,2506.4,8.7838]
[1746996167832,3.98931596,2506.7,2506.5,1.27240624]
[1746996172456,3.9894678,2506.6,2506.5,1.27240624]
[1746996173159,4.80739185,2507.1,2506.5,1.27240624]
[1746996173160,3.98939293,2506.7,2506.5,1.27240624]
[1746996173357,3.98923897,2506.8,2506.5,1.27240624]
[1746996173728,3.98900509,2506.9,2506.5,1.27240624]
[1746996173729,3.98933682,2506.7,2506.5,1.27240624]
[1746996173929,3.98923058,2506.8,2506.5,1.27240624]
[1746996174261,3.98851308,2507.2,2506.6,1.00562062]
[1746996174460,3.98890951,2507.0,2506.6,1.00562062]
[1746996174664,3.9890277,2506.9,2506.7,0.09775453]
[1746996175340,3.98914951,2506.8,2506.7,0.09775453]
[1746996176032,3.98905624,2506.9,2506.7,0.09775453]
[1746996177426,3.98842417,2507.3,2507.1,8.0]
[1746996177661,3.98842417,2507.3,2507.2,1.5977958]
[1746996177863,3.98842417,2507.3,2507.0,8.0]
[1746996178029,3.98842417,2507.3,2507.2,0.09638756]
[1746996178376,3.98867217,2507.1,2507.0,8.0]
[1746996178556,3.98851308,2507.2,2507.0,2.64]
[1746996178741,3.98805122,2507.5,2507.1,8.0]
[1746996179859,3.98851308,2507.2,2507.1,8.0]
[1746996180962,3.98851308,2507.2,2506.8,8.7995]
[1746996180963,3.98881461,2507.1,2506.8,8.7995]
[1746996181261,3.98881461,2507.1,2507.0,8.0]
[1746996182661,3.98881461,2507.1,2506.9,0.87995]
[1746996182963,3.98881461,2507.1,2507.0,8.0]
[1746996185234,3.98855625,2507.2,2507.0,8.0]
[1746996187889,3.98867217,2507.1,2507.0,8.0]
[1746996188042,3.98867217,2507.1,2506.3,0.283161]
[1746996188043,3.98930865,2506.7,2506.5,2.635]
[1746996188242,3.98957417,2506.6,2506.5,2.635]
[1746996191487,3.99010454,2506.2,2506.1,0.05]
[1746996197663,3.98999763,2506.3,2506.1,0.05]
[1746996198965,0.7632,2506.6,2506.1,0.05]
[1746996198966,3.98956646,2506.6,2506.4,12.262138]
[1746996199268,0.7693,2506.8,2506.2,0.765]
[1746996199473,3.98920827,2506.8,2506.2,0.80489591]
[1746996199775,3.98920827,2506.8,2506.4,8.0]
[1746996199964,3.98930865,2506.7,2506.6,8.0]
[1746996207506,3.99010454,2506.2,2506.1,0.05]
[1746996207703,4.75940454,2506.2,2506.1,0.05]
[1746996208088,0.7693,2506.6,2506.3,8.749376]
[1746996208295,3.98973234,2506.5,2506.1,0.05]
[1746996209383,3.98979207,2506.4,2506.1,0.05]
[1746996209562,3.98970562,2506.5,2506.1,0.9315]
[1746996210475,3.98980729,2506.4,2506.1,0.9315]
[1746996212295,3.98978075,2506.5,2506.1,0.9315]
[1746996213293,3.98980337,2506.4,2506.1,0.9315]
[1746996214808,3.98980337,2506.4,2506.3,8.0]
[1746996216113,3.99010454,2506.2,2506.1,8.05]
[1746996216626,3.99010454,2506.2,2506.1,0.05]
[1746996217628,3.99010454,2506.2,2506.1,2.46104085]
[1746996218191,4.79350454,2506.2,2506.1,2.46104085]
[1746996218815,5.01682476,2506.2,2506.1,2.46104085]
[1746996219015,5.66794526,2506.2,2506.1,2.46104085]
[1746996222031,5.44462504,2506.2,2506.1,2.46104085]
[1746996223122,5.44462504,2506.2,2506.1,10.5371602]
[1746996223308,3.99010454,2506.2,2506.1,10.5371602]
[1746996227329,6.70475089,2506.2,2506.1,10.5371602]
[1746996228413,4.79600454,2506.2,2506.1,10.5371602]
[1746996229888,6.70475089,2506.2,2506.1,10.5371602]
[1746996230219,6.70475089,2506.2,2506.1,10.46104085]
[1746996230410,6.70475089,2506.2,2506.1,2.54345488]
[1746996230612,6.70475089,2506.2,2506.1,2.46104085]
[1746996230812,6.92768891,2506.2,2506.1,2.46104085]
[1746996231018,6.92768891,2506.2,2506.1,2.54413841]
[1746996231230,9.44768891,2506.2,2506.1,2.54413841]
[1746996232995,9.44768891,2506.2,2506.1,10.54413841]
[1746996239942,9.99768891,2506.2,2506.1,2.54413841]
[1746996240249,12.62468891,2506.2,2506.1,2.46104085]
[1746996241054,18.73143526,2506.2,2506.1,1.01197443]
[1746996242257,3.99169726,2505.2,2505.1,0.05]
[1746996242460,3.99169726,2505.2,2505.1,0.13402533]
[1746996242623,3.99169726,2505.2,2505.1,0.05]
[1746996242821,4.21463528,2505.2,2505.1,0.05]
[1746996243252,4.21463528,2505.2,2505.1,0.13402533]
[1746996245258,0.22293802,2505.2,2505.1,0.13402533]
[1746996246144,3.99146308,2505.4,2505.2,0.7811]
[1746996246343,3.9912841,2505.5,2505.2,0.7811]
[1746996246552,3.9912841,2505.5,2505.3,0.08822645]
[1746996246732,3.9912841,2505.5,2505.2,0.7811]
[1746996247062,3.9912841,2505.5,2505.3,0.08822645]
[1746996247267,3.9912841,2505.5,2505.2,0.7811]
[1746996247474,3.9912841,2505.5,2505.3,0.08822645]
[1746996247828,3.9912841,2505.5,2505.2,0.7811]
[1746996248028,2.52,2505.7,2505.3,0.08822645]
[1746996248222,3.99153793,2505.3,2505.2,0.7811]
[1746996248457,3.99153793,2505.3,2505.2,0.86932645]
[1746996251637,3.99153793,2505.3,2505.2,0.08822645]
[1746996254777,3.9912921,2505.5,2505.3,0.7912]
[1746996254931,3.9912921,2505.5,2505.4,0.09018003]
[1746996264761,0.7829,2506.2,2505.5,8.0]
[1746996264965,3.99081427,2505.8,2505.6,0.89473615]
[1746996265188,3.99081427,2505.8,2505.6,0.8144]
[1746996265373,3.99061307,2505.9,2505.7,0.08033615]
[1746996266596,3.99038064,2506.1,2505.9,3.990613]
[1746996266759,3.99038064,2506.1,2506.0,0.07872438]
[1746996266959,3.99038064,2506.1,2505.7,8.0]
[1746996267267,3.99038064,2506.1,2505.8,1.22286438]
[1746996268552,3.99011481,2506.2,2505.8,1.22286438]
[1746996268790,3.9904434,2506.0,2505.8,1.22286438]
[1746996269380,3.9901659,2506.2,2505.9,0.7964]
[1746996269587,3.99027207,2506.1,2505.9,0.7964]
[1746996269764,3.99027207,2506.1,2506.0,0.07872438]
[1746996270097,6.50996543,2506.3,2506.0,0.07872438]
[1746996270098,3.9901927,2506.2,2506.0,0.07872438]
[1746996272662,3.99001305,2506.3,2506.0,0.07872438]
[1746996272863,3.98982131,2506.4,2506.0,0.07872438]
[1746996273710,0.7829,2506.6,2506.0,0.07872438]
[1746996274699,5.8990101,2506.1,2506.0,0.07872438]
[1746996274885,3.99026375,2506.1,2506.0,0.07872438]
[1746996275199,3.99028052,2506.1,2505.9,0.7972]
[1746996276361,0.8278,2506.6,2505.9,0.7972]
[1746996276703,3.9897031,2506.5,2506.1,0.7972]
[1746996276905,3.98990421,2506.4,2506.1,3.4182]
[1746996277064,3.98990421,2506.4,2506.2,8.0]
[1746996279975,3.98994533,2506.3,2506.2,8.0]
[1746996282419,3.99012205,2506.2,2506.0,8.0]
[1746996284678,3.99002087,2506.3,2506.0,8.0]
[1746996284973,3.99002087,2506.3,2506.0,9.14182]
[1746996285171,3.98994533,2506.3,2506.0,9.14182]
[1746996285415,2.73654635,2506.6,2506.0,8.0]
[1746996286994,3.990255,2506.2,2506.0,8.0]
[1746996287193,3.99026375,2506.1,2506.0,8.0]
[1746996288013,2.72534635,2506.2,2505.7,2.621]
[1746996288508,3.99032468,2506.1,2505.7,2.621]
[1746996288807,2.72534635,2506.2,2505.7,2.621]
[1746996288808,3.99050053,2506.0,2505.7,2.621]
[1746996289018,2.69604635,2506.4,2505.7,2.621]
[1746996289317,3.99040796,2506.1,2505.8,8.0]
[1746996290021,3.99045178,2506.0,2505.8,8.0]
[1746996291035,3.99008248,2506.3,2506.0,3.990451]
[1746996291188,3.99008248,2506.3,2505.9,0.8189]
[1746996292032,3.99011198,2506.2,2505.9,0.8189]
[1746996292891,3.98994884,2506.3,2505.9,0.8189]
[1746996292892,3.99027241,2506.1,2505.9,0.8189]
[1746996294301,3.99042298,2506.0,2505.9,0.8189]
[1746996295531,3.99034997,2506.1,2505.9,0.8189]
[1746996297131,3.99034997,2506.1,2506.0,8.0]
[1746996299724,0.7873,2506.6,2506.1,2.2017]
[1746996299930,3.99007359,2506.3,2506.0,9.2502]
[1746996300130,3.99007359,2506.3,2506.0,9.29009999]
[1746996300489,3.99010753,2506.2,2506.0,9.29009999]
[1746996300729,3.99010753,2506.2,2506.0,8.0]
[1746996300916,3.99026375,2506.1,2506.0,2.621]
[1746996301108,3.99001888,2506.3,2506.1,11.990263]
[1746996301294,3.99001888,2506.3,2506.1,8.0]
[1746996302332,3.99010454,2506.2,2506.1,8.0]
[1746996307998,3.99010454,2506.2,2505.3,15.1341]
[1746996307999,0.7821,2506.1,2505.3,15.1341]
[1746996308230,3.99137862,2505.4,2505.3,14.359]
[1746996308553,0.7821,2505.7,2505.3,8.0]
[1746996308705,3.99115892,2505.6,2505.3,9.77991]
[1746996308900,3.99115892,2505.6,2505.3,1.77991]
[1746996309100,3.99123399,2505.5,2505.2,2.615]
[1746996309331,3.99123399,2505.5,2505.3,8.0]
[1746996311207,3.9911434,2505.6,2505.3,8.0]
[1746996311437,0.7564,2506.1,2505.4,0.7957]
[1746996311641,0.7564,2506.6,2505.8,0.7957]
[1746996311842,0.7564,2506.6,2506.0,8.0]
[1746996312058,3.98946809,2506.6,2506.2,8.7957]
[1746996313102,3.98926585,2506.8,2506.3,0.03989455]
[1746996314461,3.98936423,2506.7,2506.3,0.03989455]
[1746996315853,3.98959699,2506.6,2506.2,8.7957]
[1746996316061,3.98959699,2506.6,2506.2,9.93667]
[1746996317344,3.98965579,2506.5,2506.2,9.93667]
[1746996317663,3.98953918,2506.6,2506.2,9.93667]
[1746996318415,3.98953918,2506.6,2506.2,1.93667]
[1746996318610,3.98953918,2506.6,2506.4,8.0]
[1746996319021,3.98939024,2506.7,2506.4,8.0]
[1746996319226,3.98939024,2506.7,2506.6,8.0]
[1746996319425,3.9880111,2507.6,2506.8,8.0]
[1746996319640,3.98782569,2507.7,2507.0,8.8244]
[1746996319857,3.98817994,2507.5,2507.2,8.0]
[1746996320051,3.988354,2507.3,2507.0,0.8244]
[1746996320239,3.988354,2507.3,2507.2,5.227]
[1746996321046,3.98821829,2507.4,2507.2,5.227]
[1746996321353,3.98821829,2507.4,2507.2,10.615]
[1746996322057,3.98821829,2507.4,2507.3,8.0]
[1746996322230,3.98821829,2507.4,2507.2,8.0]
[1746996323110,3.98790726,2507.6,2507.2,8.0]
[1746996323314,3.98790726,2507.6,2507.2,9.40514]
[1746996323513,3.98803589,2507.5,2507.2,9.40514]
[1746996324131,3.98829699,2507.4,2507.2,9.40514]
[1746996324454,3.988354,2507.3,2507.2,9.40514]
[1746996325020,3.988354,2507.3,2506.9,2.615]
[1746996325021,3.98883127,2507.0,2506.9,2.615]
[1746996325215,3.98883127,2507.0,2506.9,10.615]
[1746996325449,3.98883127,2507.0,2506.9,8.0]
[1746996325858,3.98899038,2506.9,2506.8,5.226]
[1746996326060,3.98899038,2506.9,2506.8,13.226]
[1746996326220,3.9888737,2507.0,2506.9,8.0]
[1746996326541,3.9888737,2507.0,2506.8,10.614]
[1746996327117,3.98839397,2507.3,2506.9,8.0]
[1746996327343,3.9887493,2507.1,2506.9,8.0]
[1746996327657,3.9887493,2507.1,2507.0,14.650021]
[1746996327860,3.98856128,2507.2,2507.0,6.820021]
[1746996328077,3.98856128,2507.2,2506.9,8.0]
[1746996329850,3.98869711,2507.1,2506.9,8.0]
[1746996330217,6.64678869,2507.5,2506.6,0.8283]
[1746996330218,3.98883127,2507.0,2506.6,0.8283]
[1746996330427,3.98917385,2506.8,2506.6,0.8283]
[1746996330722,4.76076856,2507.1,2506.7,13.224]
[1746996331264,4.76076856,2507.1,2506.8,8.0]
[1746996331628,3.98899685,2506.9,2506.7,5.224]
[1746996331863,3.98899685,2506.9,2506.7,2.614]
[1746996332160,3.98899685,2506.9,2506.8,8.0]
[1746996332814,3.98899685,2506.9,2506.8,10.75866364]
[1746996333362,3.98891259,2507.0,2506.8,10.75866364]
[1746996333861,3.98891259,2507.0,2506.9,10.78007809]
[1746996336576,3.98779684,2507.7,2507.0,0.83]
[1746996336874,3.98805671,2507.5,2507.1,2.83465571]
[1746996337071,3.98796041,2507.6,2507.2,10.609]
[1746996337272,0.7638,2508.0,2507.4,8.0]
[1746996337570,3.98782992,2507.7,2507.4,8.0]
[1746996337858,3.98782992,2507.7,2507.6,8.0]
[1746996338221,3.98782992,2507.7,2507.6,10.66223388]
[1746996341253,6.71647627,2507.7,2507.6,2.66223388]
[1746996341457,6.93974388,2507.7,2507.6,2.66223388]
[1746996342364,10.00974388,2507.7,2507.6,2.66223388]
[1746996342782,0.8199,2506.8,2505.7,14.352]
[1746996343067,3.99074147,2505.8,2505.6,0.7638]
[1746996343233,3.99109566,2505.6,2505.2,0.7638]
[1746996343432,3.99120138,2505.6,2505.3,2.609]
[1746996343672,3.99122269,2505.5,2505.2,0.7638]
[1746996343843,3.99169726,2505.2,2504.8,3.3728]
[1746996344360,3.99169726,2505.2,2504.8,2.609]
[1746996344672,3.99169726,2505.2,2504.9,8.0]
[1746996345240,3.99169726,2505.2,2505.1,0.12457368]
[1746996345473,3.99169726,2505.2,2505.1,0.05]
[1746996346172,7.96825484,2505.2,2505.1,0.05]
[1746996346333,11.94615484,2505.2,2505.1,0.05]
[1746996347567,11.6178659,2505.2,2505.1,0.05]
[1746996348772,12.1678659,2505.2,2505.1,0.05]
[1746996349867,11.94615484,2505.2,2505.1,0.05]
[1746996350291,4.81319127,2504.2,2504.1,0.05]
[1746996351348,0.8199,2504.5,2504.1,0.05]
[1746996351582,0.8199,2504.8,2504.2,0.09118522]